Cogmind - Beta 13 @@@ ROGUE MODE // 2024.08.03 @ 01:08:51 Player: jagoly Result: Destroyed by D-53 Grenadier with Mini Grenade Launcher Performance ------------- Evolutions (0) 0 Regions Visited (2) 400 Robots Destroyed (22) 110 Value Destroyed (563) 563 Prototype IDs (3) 60 Alien Tech Used (0) 0 Bonus (0) 0 TOTAL SCORE: 1133 Bonus ------- None Cogmind --------- Core Integrity 0/250 Matter 230/300 Energy 250/250 System Corruption 1% Temperature Cool (0) Movement Core (450) Ox8 Location -10/Mines Parts ------- > --- POWER (1) -------- Ion Engine > --- PROPULSION (2) --- (None) > --- UTILITY (2) ------ Large Storage Unit Targeting Computer > --- WEAPON (2) ------- Small Laser > --- INVENTORY (15) --- Ion Engine Light Treads Heat Sink Improved Heat Sink Large Storage Unit Huge Storage Unit Experimental Sensor Array Targeting Computer Hacking Suite Small Laser Datajack Peak State ------------ > --- POWER ------------ Ion Engine > --- PROPULSION ------- Light Treads Light Treads > --- UTILITY ---------- Large Storage Unit Targeting Computer > --- WEAPON ----------- Small Laser Small Laser > --- INVENTORY -------- Ion Engine Light Treads Light Treads Heat Sink Improved Heat Sink Large Storage Unit Huge Storage Unit Experimental Sensor Array Targeting Computer Hacking Suite Grenade Launcher Datajack [Rating: 9] Favorites ----------- Power Ion Engine Engine Ion Engine Propulsion Light Treads Treads Light Treads Leg Aluminum Leg Utility Targeting Computer Device Heat Sink Storage Large Storage Unit Processor Targeting Computer Weapon Small Laser Energy Gun Small Laser Ballistic Gun Assault Rifle Launcher Grenade Launcher Build | -11 -10 -10 ------- Run | Yrd Mat Min Slots Evolved . | . . . Power . | . . . Propulsion . | . . . Utility . | . . . Weapon . | . . . Parts Attached 20 | 6 12 2 Power 2 | 1 1 . Engine 2 | 1 1 . Core . | . . . Reactor . | . . . Propulsion 5 | 2 2 1 Treads 3 | . 2 1 Leg 2 | 2 . . Wheel . | . . . Hover . | . . . Flight . | . . . Utility 6 | 1 5 . Device 1 | . 1 . Storage 4 | 1 3 . Processor 1 | . 1 . Hackware . | . . . Protection . | . . . Artifact . | . . . Weapon 7 | 2 4 1 Energy Gun 5 | 2 3 . Energy Cannon . | . . . Ballistic Gun 1 | . 1 . Ballistic Cannon . | . . . Launcher 1 | . . 1 Special Weapon . | . . . Impact Weapon . | . . . Slashing Weapon . | . . . Piercing Weapon . | . . . Special Melee Weapon . | . . . Unidentified Prototypes . | . . . Parts Lost 7 | . 3 4 Power 1 | . 1 . Propulsion 3 | . . 3 Utility . | . . . Weapon 3 | . 2 1 Highest Loss Streak 4 | . 2 4 To Critical Strikes . | . . . Average Slot Usage (%) 95 | . 95 100 Engine 11 | . 11 14 Treads 19 | . 18 28 Leg 8 | . 9 . Storage 14 | . 14 14 Processor 12 | . 12 14 Energy Gun 18 | . 18 21 Ballistic Gun 8 | . 9 . Naked Turns . | . . . Heaviest Build 30 | 12 30 29 Greatest Support 40 | 20 40 40 Greatest Overweight (x) 8 | . . 8 Average Overweight (x) . | . . . Largest Inventory Capacity 15 | 8 15 15 Average Capacity 12 | 7 12 15 Most Carried 12 | 4 11 12 Average Carried 7 | 2 7 11 Final Capacity 15 | 8 15 15 Final Carried 11 | 4 11 11 Class Distribution -------------------- 100% | Mutant Dominant Class ---------------- Mutant | -10/Materials Mutant | -10/Mines Resources | -11 -10 -10 ----------- Run | Yrd Mat Min Matter Collected 560 | 165 395 . Remotely . | . . . Salvage Created 878 | . 822 56 Parts 45 | . 41 4 Haulers Intercepted 2 | . 2 . Recyclers Shooed 2 | . 1 1 Parts Field Recycled . | . . . Retrieved Matter . | . . . Parts Self-Destructed . | . . . Prevented . | . . . Kills | -11 -10 -10 ------- Run | Yrd Mat Min Combat Hostiles Destroyed 23 | . 13 10 Guns 12 | . 12 . AOE 10 | . . 10 Classes Destroyed 8 | . 5 3 Worker 1 | . . 1 Tunneler 1 | . . 1 Hauler 2 | . 2 . Recycler 1 | . 1 . Operator 2 | . 2 . Watcher 2 | . 2 . Grunt 13 | . 13 . Assembled 10 | . . 10 Best Kill Streak 12 | . 3 12 Combat Bots Only 10 | . 3 10 Max Kills in Single Turn 3 | . 1 3 Gunslinging . | . . . Exploded 2 | . . 2 Melee . | . . . Uniques/NPCs Destroyed . | . . . Combat | -11 -10 -10 -------- Run | Yrd Mat Min Hostile Shots Fired 99 | . 76 23 Missed 28 | . 22 6 Damage Taken 1170 | . 645 525 Core 264 | . 91 173 Absorbed by Shields . | . . . Core Remaining (%) 100 | 100 . . Volleys Fired 99 | . 92 7 Largest 2 | . 2 1 Hottest 96 | . 96 30 Shots Fired 173 | . 166 7 Gun 166 | . 166 . Cannon . | . . . Launcher 7 | . . 7 Special . | . . . Kinetic 65 | . 65 . Thermal 101 | . 101 . Explosive 7 | . . 7 Electromagnetic . | . . . Robot Hit Streak 14 | . 14 5 Robot Miss Streak 3 | . 3 1 Penetration Max . | . . . Secondary Targets 1 | . 1 . Max Gunslinging Chain 1 | . 1 . Shots Hit Robots 122 | . 118 4 Core Hits 57 | . 39 18 Critical Kills . | . . . Critical Parts Destroyed 1 | . 1 . Critical Strikes 5 | . 5 . Burn 4 | . 4 . Destroy 1 | . 1 . Melee Attacks . | . . . Impact . | . . . Slashing . | . . . Piercing . | . . . Sneak Attacks . | . . . Combat Hostiles . | . . . Follow-up Attacks . | . . . Damage Inflicted 2418 | . 1562 856 Guns 1562 | . 1562 . Cannons . | . . . Explosions 856 | . . 856 Melee . | . . . Ramming . | . . . Kinetic 579 | . 579 . Thermal 983 | . 983 . Explosive 856 | . . 856 Electromagnetic . | . . . Impact . | . . . Slashing . | . . . Piercing . | . . . Highest Corruption 1 | . 1 1 Average Corruption 1 | . 1 1 Corruption Purged . | . . . Corruption Blocked . | . . . Effects 1 | . 1 . Heat Flow Errors 1 | . 1 . Overload Shots . | . . . Overflow Damage 12 | . . 12 Projectiles . | . . . Explosions 12 | . . 12 Melee . | . . . Knockbacks . | . . . Impact . | . . . Kinetic . | . . . Secondary . | . . . Self-Inflicted Damage . | . . . Shots . | . . . Rammed . | . . . Targets Rammed . | . . . Kicked . | . . . Crushed . | . . . Highest Temperature 296 | . 296 . Average Temperature 63 | . 63 . Received Heat Transfer 357 | . 357 . Siege Activations . | . . . Robots Corrupted . | . . . Combat Hostiles . | . . . Parts Fried . | . . . Impact Corruptions . | . . . Robots Melted 1 | . 1 . Combat Hostiles 1 | . 1 . Parts Melted 4 | . 4 . Heat Transferred 2687 | . 2687 . Parts Sabotaged . | . . . Parts Stolen . | . . . Parts Stripped . | . . . Power Chain Reactions . | . . . Alert | -11 -10 -10 ------- Run | Yrd Mat Min Peak Influence 193 | . 193 55 Initial . | . . . Average 56 | . 61 11 Maximum Alert Level . | . . . Low Security (%) 100 | 100 100 100 Level 1 . | . . . Level 2 . | . . . Level 3 . | . . . Level 4 . | . . . Level 5 . | . . . High Security . | . . . Max Security . | . . . Squads Dispatched 5 | . 5 . Investigation 3 | . 3 . Extermination . | . . . Reinforcement 2 | . 2 . Assault . | . . . Garrison . | . . . Intercept . | . . . Searches Triggered . | . . . Construction Impeded . | . . . Haulers Reinforced . | . . . Active Scanning Responses . | . . . Cargo Convoy Interrupts . | . . . Stealth | -11 -10 -10 --------- Run | Yrd Mat Min Distress Signals . | . . . Communications Jammed . | . . . Distress Signals . | . . . Times Spotted 39 | . 24 15 Peak Tracking Total 9 | . 3 9 Tactical Retreats 1 | . . 1 Traps | -11 -10 -10 ------- Run | Yrd Mat Min Traps Triggered 2 | . 2 . Indirectly . | . . . Trap Hack Attempts . | . . . Triggered . | . . . Disarmed . | . . . Reprogrammed . | . . . Reused . | . . . Traps Extracted . | . . . Installed . | . . . Triggered . | . . . Machines | -11 -10 -10 ---------- Run | Yrd Mat Min Machines Disabled . | . . . Max in Single Turn . | . . . Machines Repaired . | . . . Machines Dismantled . | . . . Machines Sabotaged . | . . . Overloaded Fab Kills . | . . . Hacking | -11 -10 -10 --------- Run | Yrd Mat Min Machines Accessed 8 | . 8 . Terminals 6 | . 6 . Fabricators . | . . . Repair Stations . | . . . Recycling Units 2 | . 2 . Scanalyzers . | . . . Garrison Access . | . . . Total Hacks 24 | . 24 . Successful 11 | . 11 . Failed 13 | . 13 . Catastrophic 1 | . 1 . Database Lockouts . | . . . Manual 13 | . 13 . Terminals 19 | . 19 . Fabricators . | . . . Repair Stations . | . . . Recycling Units 5 | . 5 . Scanalyzers . | . . . Garrison Access . | . . . Terminal Hacks 7 | . 7 . Prototype ID Bank 2 | . 2 . Terminal Index 1 | . 1 . Unreport Threat 1 | . 1 . Locate Traps 3 | . 3 . Fabricator Hacks . | . . . Repair Station Hacks . | . . . Recycling Unit Hacks 2 | . 2 . Retrieve Components 2 | . 2 . Scanalyzer . | . . . Garrison Access Hacks . | . . . Unauthorized Hacks 2 | . 2 . Terminals . | . . . Fabricators . | . . . Repair Stations . | . . . Recycling Units 2 | . 2 . Tunnel 2 | . 2 . Scanalyzers . | . . . Garrison Access . | . . . Data Cores Recovered . | . . . Used . | . . . Hacking Detections 7 | . 7 . Full Trace Events . | . . . Feedback Events . | . . . Feedback Blocked . | . . . Robot Schematics Acquired . | . . . Robots Built . | . . . Authchips . | . . . Time . | . . . Total Robot Build Rating . | . . . Part Schematics Acquired . | . . . Parts Built . | . . . Authchips . | . . . Time . | . . . Total Part Build Rating . | . . . Parts Repaired . | . . . Time . | . . . Parts Recycled . | . . . Recycled Matter . | . . . Retrieved Matter . | . . . Retrieved Components 12 | . 12 . Parts Scanalyzed . | . . . Part Schematics Acquired . | . . . Parts Damaged . | . . . Bothacking | -11 -10 -10 ------------ Run | Yrd Mat Min Used RIF Installer . | . . . Robots Hacked . | . . . Non-combat . | . . . Combat . | . . . Robot Hacks Applied . | . . . Relay Couplers Released . | . . . Fabnet Peak Effective % . | . . . Robots Rewired . | . . . Allies Hacked . | . . . Hacks Repelled . | . . . Allies | -11 -10 -10 -------- Run | Yrd Mat Min Total Allies . | . . . Largest Group . | . . . Highest-Rated Group . | . . . Highest-Rated Ally . | . . . Total Orders . | . . . Ally Attacks . | . . . Total Damage . | . . . Kills . | . . . Allies Corrupted . | . . . Allies Melted . | . . . Intel | -11 -10 -10 ------- Run | Yrd Mat Min Robot Analysis Total . | . . . Derelict Logs Recovered . | . . . Drone Launches . | . . . Drone Recoveries . | . . . Exploration | -11 -10 -10 ------------- Run | Yrd Mat Min Turns Passed 1783 | 63 1615 105 Spaces Moved 975 | 45 877 53 Core 6 | 5 . 1 Treads 636 | . 584 52 Legs 333 | 40 293 . Wheels . | . . . Hover . | . . . Flight . | . . . Fastest Speed 50 | 50 120 160 Average Speed 146 | 112 146 166 Slowest Speed 450 | 120 160 450 Overloaded Moves . | . . . Propulsion Burnouts . | . . . Robots Hopped . | . . . Cave-ins Triggered . | . . . Exploration Rate (%) 40 | 3 97 21 Regions Visited 2 Branch Regions 1 Pre-discovered Areas 2 | . 2 . Known Exits Taken . | . . . Unknown Exits Taken 2 | 1 1 . Scrap Searched . | . . . Spaces Dug . | . . . Terrain Destroyed 57 | . . 57 Melee . | . . . Projectile . | . . . AOE 57 | . . 57 Terrain Rammed . | . . . Walls Destroyed . | . . . Machines Disabled . | . . . Actions | -11 -10 -10 --------- Run | Yrd Mat Min Total 1160 | 54 1041 65 Wait 41 | . 39 2 Move 973 | 44 876 53 Hop . | . . . Pick Up 17 | 4 12 1 Fast Attach 11 | 6 5 . Attach 3 | . 2 1 Detach 2 | . 2 . Swap 6 | . 5 1 Drop 8 | . 8 . Fire 99 | . 92 7 Melee . | . . . Ram . | . . . Kick . | . . . Crush . | . . . Escape Stasis . | . . . Rewire . | . . . Trap . | . . . Miscellaneous . | . . . Route ------- -11/Scrapyard -10/Materials (discovered 5 exits: [*Mat x3] / [*Min x2]) -10/Mines History --------- Turn | Location | Event 2 | -11/Scrapyard | Discovered new exit (range 16) 64 | -11/Scrapyard | Entered Materials 157 | -10/Materials | Discovered new exit (range 9) 288 | -10/Materials | Discovered new exit (range 9) 308 | -10/Materials | Build established: Mutant 349 | -10/Materials | Discovered new exit (range 8) 763 | -10/Materials | Discovered new exit (range 5) 1046 | -10/Materials | Discovered new exit (range 14) 1679 | -10/Materials | Entered Mines 1731 | -10/Mines | Assembled infested the area 1732 | -10/Mines | Found a damaged Exp. Sensor Array with a note attached 1735 | -10/Mines | Found Prototype Device 1736 | -10/Mines | Assisted by a Guerilla fighting off Assembled 1781 | -10/Mines | Core integrity fell below 50% 1783 | -10/Mines | Core integrity fell below 20% 1784 | -10/Mines | Destroyed by D-53 Grenadier with Mini Grenade Launcher Last Messages --------------- 01764_ as-23851 destroyed. 01765_ U-05 Engineer lays Concrete. 01766_ as-25883 destroyed. 01766_ K-01 Serf destroyed. 01766_ U-05 Engineer lays Concrete. 01768_ as-02786 destroyed. 01768_ U-05 Engineer destroyed. 01769_ T-07 Excavator is excavating. 01770_ The unstable cave ceiling collapses. 01770_ as-32891 destroyed. 01770_ as-91081 destroyed. 01770_ as-70808 destroyed. 01770_ U-05 Engineer destroyed. 01772_ as-42088 destroyed. 01776_ Lgt. Treads destroyed. 01777_ The unstable cave ceiling collapses. 01780_ Lgt. Treads destroyed. 01780_ Grenade Launcher destroyed. 01781_ The unstable cave ceiling collapses. 01782_ Lgt. Treads destroyed. Map ----- +----------------------------------------------------+ | ?????????????????????????????????????????????????? | | ?????????????????????????????????????????????????? | | ?????????????????????????????????????????????????? | | ?????????????????????????????????????????????????? | | ?????????????????????????????????????????????????? | | ?????????????????????????????????????????????????? | | ?????????????????????????????????????????????????? | | ?????????????????????????????????????????????????? | | ?????????????????????????????????????????????????? | | ?????????????????????????????????????????????????? | | ?????????????????????????????????????????????????? | | ?????????????????????????????????????????????????? | | ?????????????????????????????????????????????????? | | ??????????????????????????????????# ?????????????? | | ??????????????????????????#####??# ???????????? | | ?????????????????????????## # ### #??????????? | | ????????????????????????## #####??????? | | ????????????????????????? ! ## ##????? | | ????????????????????????? ! ## ##???? | | ?????????????????????????# #?# ##??# | | ???????????????????????### #??# #?## | | ???????????????????????# $ #???## ### | | ?????????????????????### #?????## ### | | ?????????????????????# ##?????## ## | | ?????????????????????# d #??????## ## | | ???????????????????#### d@ #?####??# # | | ???????????? % #### ##?# | | ??????????? ### ### | | ???????????#### # | | ??????????????# """ ###### #### | | ??????????????# """ # # # ##????####??? | | ?????????????????""" ##### ##??????????? | | ????????????????? #????## #??????????? | | ???????????????? # #??????###### #??????????? | | ??????????????? ## ????????????## t##??????????? | | ??????????????? ##?#??????????????# #???????????? | | ??????????????????????????????????####???????????? | | ?????????????????????????????????????????????????? | | ?????????????????????????????????????????????????? | | ?????????????????????????????????????????????????? | | ?????????????????????????????????????????????????? | | ?????????????????????????????????????????????????? | | ?????????????????????????????????????????????????? | | ?????????????????????????????????????????????????? | | ?????????????????????????????????????????????????? | | ?????????????????????????????????????????????????? | | ?????????????????????????????????????????????????? | | ?????????????????????????????????????????????????? | | | | | +----------------------------------------------------+ Best States ------------- Heat Dissipation 35 Energy Generation 10 Energy Capacity 250 Matter Stores 300 Matter Capacity 300 Sight Range 16 Terrain Scan Density 10 Evasion (%) 55 Targeting Accuracy 5 Recoil Reduction 2 Item Schematics ----------------- None Robot Schematics ------------------ None Fabricated ------------ Nothing Alien Tech Used ----------------- None Achievements -------------- None Challenges ------------ None Game ------ Seed HelicalTeslaRegenerator Manual? 0 Play Time 00:14:46 Cumulative 201.9 hours Start 2024.08.03 @ 00:55:48 End 2024.08.03 @ 01:08:51 Sessions 1 Manual Loads 0 Difficulty Rogue Special Mode None Game No. 66 Rogue 66 Adventurer 0 Explorer 0 Win Type - Total 1 Types 1/0/0/0/0/0/0/0/0 Lore% 59 Gallery% 67 Achievement% 51 Wizard Run 0 Options --------- Layout 0 ASCII 0 Keyboard 1 Movement Numpad Keybinds 0 Fullscreen 1 Font 18/X11Bold Map View 76x50 Zoom Use 0% Tactical HUD 1 Map Filters NONE Filters NONE Steam 1 RUN: b6a4889e-c2b7-4398-bc6b-bb8eb683ef0f